Workbook

Sheet Tabelle1
K4: Verminderung | L4: Erhöhung
A5: Jahr | B5: HöchstBMG mon | C5: Höchst BMG Jahr | D5: Monate | E5: erwünschte | F5: BMGM für Karenz | G5: BMGJ für Karenz | H5: 0.0178 | I5: vierzehntel | J5: Gesamt | K5: Pension | L5: Pension
E6: neue BMG | K6: Mann | L6: Frau
A8: 2028
A9: 2027
A10: 2026 | B10: 6930 | C10: 97020
A11: 2025 | B11: 6450 | C11: =B11*14 -> 90300 | H11: =C11*0.0178 -> 1607.34 | I11: =H11/14 -> 114.81
A12: =A11-1 -> 2024 | B12: 6060 | C12: =B12*14 -> 84840 | H12: =C12*0.0178 -> 1510.152 | I12: =H12/14 -> 107.868
A13: =A12-1 -> 2023 | B13: 5850 | C13: 81900 | H13: 1457.82 | I13: 104.13
A14: 2022 | B14: 5670 | C14: 79380 | H14: 1412.964 | I14: 100.926
A15: 2021 | B15: 5550 | C15: 77700 | H15: 1383.06 | I15: 98.79
A16: 2020 | B16: 5370 | C16: 75180 | H16: 1338.204 | I16: 95.586
A17: 2019 | B17: 5220 | C17: 73080 | H17: 1300.824 | I17: 92.916
A18: 2018 | B18: 5130 | C18: 71820 | H18: 1278.396 | I18: 91.314
A19: 2017 | B19: 4980 | C19: 69720 | H19: 1241.016 | I19: 88.644
A20: 2016 | B20: 4860 | C20: 68040 | H20: 1211.112 | I20: 86.508
A21: 2015 | B21: 4650 | C21: 65100 | H21: 1158.78 | I21: 82.77
A22: 2014 | B22: 4530 | C22: 63420 | H22: 1128.876 | I22: 80.634
A24: Übertragungen | B24: Teilgutschrift Mann
A27: 2028
A28: 2027
A29: 2026 | F29: 2468.01 | G29: =F29*12 -> 29616.12 | H29: =G29*0.0178 -> 527.166936 | I29: =H29/14 -> 37.65478114
A30: 2025 | F30: 2300.1 | G30: 27601.2 | H30: 491.30136 | I30: 35.09295429
A31: 2024 | F31: 2163.78 | G31: =F31*12 -> 25965.36 | H31: 462.183408 | I31: =H31/14 -> 33.01310057
A32: 2023 | F32: 2090.61 | G32: =F32*12 -> 25087.32 | H32: 446.554296 | I32: =H32/14 -> 31.89673543
A33: 2022 | F33: 2027.75 | G33: 24333 | H33: 433.1274 | I33: 30.93767143
A34: 2021 | F34: 1986.04 | G34: 23832.48 | H34: 424.218144 | I34: 30.301296
A35: 2020 | F35: 1922.59 | G35: 23071.08 | H35: 410.665224 | I35: 29.33323029
A36: 2019 | F36: 1864.78 | G36: 22377.36 | H36: 398.317008 | I36: 28.45121486
A37: 2018 | F37: 1828.22 | G37: 21938.64 | H37: 390.507792 | I37: 27.89341371
A38: 2017 | F38: 1776.7 | G38: 21320.4 | H38: 379.50312 | I38: 27.10736571
A39: 2016 | F39: 1735.06 | G39: 20820.72 | H39: 370.608816 | I39: 26.47205829
A40: 2015 | F40: 1694.39 | G40: 20332.68 | H40: 361.921704 | I40: 25.85155029
A41: 2014 | F41: 1649.84 | G41: 19798.08 | H41: 352.405824 | I41: 25.17184457
A42: 2013 | F42: 1614.32 | G42: =F42*12 -> 19371.84 | H42: 344.818752 | I42: =H42/14 -> 24.62991086
A43: 2012 | F43: 1570.35 | G43: 18844.2 | H43: 335.42676 | I43: 23.95905429
A44: 2011 | F44: 1559.45 | G44: 18713.4 | H44: 333.09852 | I44: 23.79275143
A45: 2010 | F45: 1528.87 | G45: 18346.44 | H45: 326.566632 | I45: 23.326188
A46: 2009 | F46: 1482.9 | G46: 17794.8 | H46: 316.74744 | I46: 22.62481714
A47: 2008 | F47: 1448.14 | G47: 17377.68 | H47: 309.322704 | I47: 22.09447886
A48: 2007 | F48: 1414.2 | G48: 16970.4 | H48: 302.07312 | I48: 21.57665143
A49: 2006 | F49: 1381.05 | G49: 16572.6 | H49: 294.99228 | I49: 21.07087714
A50: 2005 | F50: 1350 | G50: 16200 | H50: 288.36 | I50: 20.59714286
A51: 2004 | F51: 1319.65 | G51: 15835.8 | H51: 281.87724 | I51: 20.13408857
A53: Daten eingeben
